[Event "*** SCC Grand Prix: Titled Tuesday Blitz"]
[Site "Chess.com"]
[Date "2020.10.13"]
[Round "1"]
[White "GMSrinath"]
[Black "Superfelix"]
[Result "0-1"]
[WhiteElo "2818"]
[BlackElo "2455"]
[TimeControl "180+1"]
[EndTime "10:08:33 PDT"]
[Termination "Superfelix won by resignation"]

1. Nf3 {[%clk 0:02:58.7]} 1... Nf6 {[%clk 0:02:59.5]} 2. c4 {[%clk 0:02:55.4]}
2... g6 {[%clk 0:03:00.4]} 3. b3 {[%clk 0:02:54.9]} 3... Bg7 {[%clk 0:03:01.3]}
4. Bb2 {[%clk 0:02:54.6]} 4... O-O {[%clk 0:03:01.2]} 5. g3 {[%clk 0:02:49.4]}
5... b6 {[%clk 0:02:59.6]} 6. Bg2 {[%clk 0:02:49.6]} 6... Bb7 {[%clk 0:02:59.8]}
7. O-O {[%clk 0:02:49.8]} 7... d6 {[%clk 0:03:00.1]} 8. Nc3 {[%clk 0:02:49.8]}
8... Nbd7 {[%clk 0:03:00.7]} 9. d4 {[%clk 0:02:49.7]} 9... e6 {[%clk 0:02:59.2]}
10. Qc2 {[%clk 0:02:49.5]} 10... Qe7 {[%clk 0:02:58.9]} 11. e4 {[%clk
0:02:48.8]} 11... a6 {[%clk 0:02:56.6]} 12. Rfe1 {[%clk 0:02:46.5]} 12... Rad8
{[%clk 0:02:50.6]} 13. h3 {[%clk 0:02:41.6]} 13... c5 {[%clk 0:02:45.9]} 14. e5
{[%clk 0:02:36.8]} 14... dxe5 {[%clk 0:02:38.9]} 15. dxe5 {[%clk 0:02:37.7]}
15... Ne8 {[%clk 0:02:37.2]} 16. Ne4 {[%clk 0:02:25.4]} 16... h6 {[%clk
0:02:37.1]} 17. Rad1 {[%clk 0:02:23.6]} 17... a5 {[%clk 0:02:29.2]} 18. Rd2
{[%clk 0:02:09.5]} 18... Nb8 {[%clk 0:02:25.9]} 19. Rxd8 {[%clk 0:01:54]} 19...
Qxd8 {[%clk 0:02:26.8]} 20. Rd1 {[%clk 0:01:54.4]} 20... Qe7 {[%clk 0:02:26.3]}
21. Nd6 {[%clk 0:01:46.6]} 21... Nxd6 {[%clk 0:02:12.6]} 22. exd6 {[%clk
0:01:47.5]} 22... Qd8 {[%clk 0:02:10.3]} 23. Bxg7 {[%clk 0:01:44.7]} 23... Kxg7
{[%clk 0:02:11.2]} 24. Qc3+ {[%clk 0:01:44.6]} 24... Qf6 {[%clk 0:02:10.7]} 25.
Qe3 {[%clk 0:01:35.2]} 25... Rd8 {[%clk 0:02:07.4]} 26. Ne5 {[%clk 0:01:35.1]}
26... Bxg2 {[%clk 0:02:06.7]} 27. Kxg2 {[%clk 0:01:36]} 27... h5 {[%clk
0:02:01.7]} 28. f4 {[%clk 0:01:31.9]} 28... Nd7 {[%clk 0:01:54.5]} 29. Nc6
{[%clk 0:01:31.6]} 29... Rc8 {[%clk 0:01:51.6]} 30. Ne5 {[%clk 0:01:31.5]} 30...
Rd8 {[%clk 0:01:51.4]} 31. Rd2 {[%clk 0:01:29.7]} 31... Qf5 {[%clk 0:01:51.6]}
32. Nc6 {[%clk 0:01:27.8]} 32... Re8 {[%clk 0:01:50.1]} 33. Qf3 {[%clk
0:01:16.7]} 33... Qb1 {[%clk 0:01:43]} 34. Ne5 {[%clk 0:01:11.4]} 34... Rd8
{[%clk 0:01:37.1]} 35. Nxd7 {[%clk 0:00:55.7]} 35... Rxd7 {[%clk 0:01:37.4]} 36.
Qc6 {[%clk 0:00:56.3]} 36... Qe1 {[%clk 0:01:33]} 37. Rf2 {[%clk 0:00:54.7]}
37... Rd8 {[%clk 0:01:25.1]} 38. Qxb6 {[%clk 0:00:26]} 38... Qe4+ {[%clk
0:01:23.8]} 39. Kh2 {[%clk 0:00:25.6]} 39... Qd4 {[%clk 0:01:23.9]} 40. Rg2
{[%clk 0:00:25.6]} 40... Rxd6 {[%clk 0:01:22.6]} 41. Qxa5 {[%clk 0:00:26.1]}
41... h4 {[%clk 0:01:23.2]} 42. Qe1 {[%clk 0:00:24.1]} 42... hxg3+ {[%clk
0:01:22.9]} 43. Qxg3 {[%clk 0:00:22.9]} 43... Kf8 {[%clk 0:01:07.4]} 44. Qf3
{[%clk 0:00:18.8]} 44... Qf6 {[%clk 0:01:01.9]} 45. Qe3 {[%clk 0:00:18.3]} 45...
Rd4 {[%clk 0:01:01.7]} 46. Qe5 {[%clk 0:00:18.3]} 46... Qxf4+ {[%clk 0:00:58.7]}
47. Qxf4 {[%clk 0:00:18.2]} 47... Rxf4 {[%clk 0:00:59.6]} 48. a4 {[%clk
0:00:19.1]} 48... Rf3 {[%clk 0:00:58.9]} 49. Rb2 {[%clk 0:00:19.7]} 49... Rd3
{[%clk 0:00:50.8]} 50. a5 {[%clk 0:00:19.8]} 50... Rd6 {[%clk 0:00:50.8]} 51.
Ra2 {[%clk 0:00:10.8]} 51... Ra6 {[%clk 0:00:50.8]} 52. Kg3 {[%clk 0:00:11.7]}
52... g5 {[%clk 0:00:48.6]} 53. Kf3 {[%clk 0:00:11.4]} 53... f5 {[%clk
0:00:48.4]} 54. Ke3 {[%clk 0:00:11.7]} 54... Kf7 {[%clk 0:00:48.7]} 55. Kd3
{[%clk 0:00:12.3]} 55... Kf6 {[%clk 0:00:48.3]} 56. Kc3 {[%clk 0:00:12.9]} 56...
e5 {[%clk 0:00:48.4]} 57. b4 {[%clk 0:00:13.4]} 57... cxb4+ {[%clk 0:00:49.3]}
58. Kxb4 {[%clk 0:00:14.3]} 58... e4 {[%clk 0:00:49]} 59. Kb5 {[%clk 0:00:14.8]}
59... Ra8 {[%clk 0:00:49.3]} 60. a6 {[%clk 0:00:15.7]} 60... f4 {[%clk
0:00:49.8]} 61. Kb6 {[%clk 0:00:09.2]} 61... f3 {[%clk 0:00:50]} 62. Kb7 {[%clk
0:00:09.1]} 62... Re8 {[%clk 0:00:50.1]} 63. a7 {[%clk 0:00:08.9]} 63... e3
{[%clk 0:00:50]} 64. c5 {[%clk 0:00:09.8]} 64... e2 {[%clk 0:00:49]} 65. Ra1
{[%clk 0:00:08]} 65... f2 {[%clk 0:00:47.9]} 66. c6 {[%clk 0:00:07.8]} 66...
e1=Q {[%clk 0:00:47.1]} 67. Ra6 {[%clk 0:00:07.8]} 67... Qb1+ {[%clk 0:00:43.1]}
68. Rb6 {[%clk 0:00:08.1]} 68... Qe4 {[%clk 0:00:43.1]} 69. Ka6 {[%clk
0:00:07.8]} 69... Qc4+ {[%clk 0:00:38.2]} 70. Kb7 {[%clk 0:00:06.8]} 70... f1=Q
{[%clk 0:00:32.7]} 71. c7+ {[%clk 0:00:06.9]} 71... Kf5 {[%clk 0:00:31.8]} 0-1

[Event "*** SCC Grand Prix: Titled Tuesday Blitz"]
[Site "Chess.com"]
[Date "2020.10.13"]
[Round "1"]
[White "Alindsay211"]
[Black "GiantThresher"]
[Result "0-1"]
[WhiteElo "2430"]
[BlackElo "2828"]
[TimeControl "180+1"]
[EndTime "10:08:36 PDT"]
[Termination "GiantThresher won by resignation"]

1. e4 {[%clk 0:03:00.9]} 1... e6 {[%clk 0:02:57.1]} 2. d4 {[%clk 0:02:59.3]}
2... d5 {[%clk 0:02:57.3]} 3. e5 {[%clk 0:02:59.6]} 3... c5 {[%clk 0:02:57.3]}
4. c3 {[%clk 0:02:56.9]} 4... Nc6 {[%clk 0:02:57.4]} 5. Nf3 {[%clk 0:02:55.1]}
5... Bd7 {[%clk 0:02:57.4]} 6. a3 {[%clk 0:02:53.3]} 6... f6 {[%clk 0:02:56.8]}
7. Bd3 {[%clk 0:02:41.2]} 7... Qc7 {[%clk 0:02:47.1]} 8. exf6 {[%clk 0:02:33.6]}
8... Nxf6 {[%clk 0:02:46.7]} 9. O-O {[%clk 0:02:34.5]} 9... Bd6 {[%clk 0:02:43]}
10. Bg5 {[%clk 0:02:30.3]} 10... O-O {[%clk 0:02:40.5]} 11. h3 {[%clk
0:02:29.7]} 11... Rae8 {[%clk 0:02:37.4]} 12. Nbd2 {[%clk 0:02:22.2]} 12... Nh5
{[%clk 0:02:27.2]} 13. Qc2 {[%clk 0:02:15.4]} 13... h6 {[%clk 0:02:06.9]} 14.
Bg6 {[%clk 0:02:09.5]} 14... Nf4 {[%clk 0:01:24.6]} 15. Bxf4 {[%clk 0:02:03]}
15... Rxf4 {[%clk 0:01:18.6]} 16. Bxe8 {[%clk 0:01:51.9]} 16... Bxe8 {[%clk
0:01:19.5]} 17. g3 {[%clk 0:01:42.6]} 17... Rf6 {[%clk 0:01:18.3]} 18. Kg2
{[%clk 0:01:40.8]} 18... Bg6 {[%clk 0:01:17.4]} 19. Qb3 {[%clk 0:01:32.3]} 19...
c4 {[%clk 0:01:06.6]} 20. Qd1 {[%clk 0:01:26.5]} 20... Qf7 {[%clk 0:01:06.1]}
21. Re1 {[%clk 0:01:20.5]} 21... Bh5 {[%clk 0:01:01.4]} 22. Re3 {[%clk
0:01:12.5]} 22... Ne7 {[%clk 0:00:57.3]} 23. Qe1 {[%clk 0:01:04.1]} 23... Nf5
{[%clk 0:00:47.7]} 24. Ne5 {[%clk 0:00:52.8]} 24... Nxe3+ {[%clk 0:00:47.2]} 25.
Qxe3 {[%clk 0:00:51.6]} 25... Qe8 {[%clk 0:00:36.6]} 26. Re1 {[%clk 0:00:49]}
26... Qb5 {[%clk 0:00:32.8]} 27. Rb1 {[%clk 0:00:42.4]} 27... Bg6 {[%clk
0:00:32.7]} 28. Nxg6 {[%clk 0:00:40.3]} 28... Rxg6 {[%clk 0:00:33.6]} 29. Nf3
{[%clk 0:00:40.8]} 29... Rf6 {[%clk 0:00:29.2]} 30. Ne5 {[%clk 0:00:38.6]} 30...
a6 {[%clk 0:00:24.6]} 31. Ng4 {[%clk 0:00:34.1]} 31... Rg6 {[%clk 0:00:23.7]}
32. Ne5 {[%clk 0:00:33.7]} 32... Rf6 {[%clk 0:00:20.8]} 33. Ng4 {[%clk
0:00:33.1]} 33... Rg6 {[%clk 0:00:20.5]} 34. Ne5 {[%clk 0:00:32.5]} 34... Rg5
{[%clk 0:00:20.9]} 35. h4 {[%clk 0:00:31.5]} 35... Rf5 {[%clk 0:00:21.2]} 36.
Nxc4 {[%clk 0:00:22.2]} 36... dxc4 {[%clk 0:00:10.4]} 37. Qxe6+ {[%clk
0:00:19.2]} 37... Kh7 {[%clk 0:00:11.3]} 38. Qxd6 {[%clk 0:00:19.8]} 38... Rf6
{[%clk 0:00:12.1]} 39. Qe5 {[%clk 0:00:19.3]} 39... Qc6+ {[%clk 0:00:12.3]} 40.
d5 {[%clk 0:00:18.2]} 40... Qb6 {[%clk 0:00:11.9]} 41. Qe4+ {[%clk 0:00:19.1]}
41... Kg8 {[%clk 0:00:11.7]} 42. f3 {[%clk 0:00:17.9]} 42... Rf8 {[%clk
0:00:09]} 43. Qe6+ {[%clk 0:00:17.2]} 43... Qxe6 {[%clk 0:00:09.1]} 44. dxe6
{[%clk 0:00:18.1]} 44... Rd8 {[%clk 0:00:10]} 45. Re1 {[%clk 0:00:19]} 45...
Rd2+ {[%clk 0:00:09.7]} 46. Kh3 {[%clk 0:00:19.9]} 46... Kf8 {[%clk 0:00:10.6]}
47. Kg4 {[%clk 0:00:19.3]} 47... Rxb2 {[%clk 0:00:09.9]} 48. Kf5 {[%clk
0:00:19.8]} 48... Rf2 {[%clk 0:00:09.3]} 49. f4 {[%clk 0:00:19.7]} 49... h5
{[%clk 0:00:09.7]} 50. Kg5 {[%clk 0:00:19.1]} 50... Rg2 {[%clk 0:00:09.6]} 51.
Kxh5 {[%clk 0:00:19.1]} 51... Rxg3 {[%clk 0:00:09.9]} 52. f5 {[%clk 0:00:19.5]}
52... Rxc3 {[%clk 0:00:10.1]} 53. Kg6 {[%clk 0:00:17.6]} 53... Rg3+ {[%clk
0:00:09.7]} 54. Kh7 {[%clk 0:00:16.9]} 54... b5 {[%clk 0:00:10]} 55. e7+ {[%clk
0:00:16.9]} 55... Ke8 {[%clk 0:00:10]} 56. h5 {[%clk 0:00:17.2]} 56... a5 {[%clk
0:00:09.7]} 57. h6 {[%clk 0:00:17.2]} 57... gxh6 {[%clk 0:00:10]} 58. Kxh6
{[%clk 0:00:16.5]} 58... c3 {[%clk 0:00:09.5]} 59. f6 {[%clk 0:00:16.6]} 59...
Rf3 {[%clk 0:00:09.6]} 60. Kg7 {[%clk 0:00:16.6]} 60... c2 {[%clk 0:00:09]} 61.
Kg8 {[%clk 0:00:14]} 61... b4 {[%clk 0:00:08.9]} 62. axb4 {[%clk 0:00:12.9]}
62... axb4 {[%clk 0:00:09.8]} 63. Ra1 {[%clk 0:00:11]} 63... Rxf6 {[%clk
0:00:09.6]} 0-1

[Event "*** SCC Grand Prix: Titled Tuesday Blitz"]
[Site "Chess.com"]
[Date "2020.10.13"]
[Round "1"]
[White "nrvisakh"]
[Black "Tactictic"]
[Result "1-0"]
[WhiteElo "2805"]
[BlackElo "2414"]
[TimeControl "180+1"]
[EndTime "10:08:36 PDT"]
[Termination "nrvisakh won by checkmate"]

1. e4 {[%clk 0:02:51.2]} 1... c5 {[%clk 0:03:00.1]} 2. Nf3 {[%clk 0:02:48.7]}
2... d6 {[%clk 0:02:59.3]} 3. d4 {[%clk 0:02:48.5]} 3... cxd4 {[%clk 0:03:00.2]}
4. Nxd4 {[%clk 0:02:49.3]} 4... Nf6 {[%clk 0:02:59.5]} 5. Nc3 {[%clk 0:02:45.9]}
5... a6 {[%clk 0:02:59.4]} 6. Bc4 {[%clk 0:02:44.7]} 6... e6 {[%clk 0:02:59.1]}
7. O-O {[%clk 0:02:43.4]} 7... b5 {[%clk 0:02:58.8]} 8. Bb3 {[%clk 0:02:42.9]}
8... Be7 {[%clk 0:02:58.3]} 9. Qf3 {[%clk 0:02:41]} 9... Qb6 {[%clk 0:02:57.6]}
10. Be3 {[%clk 0:02:40.9]} 10... Qb7 {[%clk 0:02:57.8]} 11. Qg3 {[%clk
0:02:35.4]} 11... O-O {[%clk 0:02:26.9]} 12. Bh6 {[%clk 0:02:27.5]} 12... Ne8
{[%clk 0:02:08.4]} 13. Rfe1 {[%clk 0:02:11.9]} 13... Nc6 {[%clk 0:02:06.1]} 14.
Nxc6 {[%clk 0:01:59.8]} 14... Qxc6 {[%clk 0:02:07]} 15. Nd5 {[%clk 0:01:54.4]}
15... Bd8 {[%clk 0:01:48.7]} 16. Rad1 {[%clk 0:01:44.7]} 16... a5 {[%clk
0:01:35.6]} 17. a3 {[%clk 0:01:33.9]} 17... a4 {[%clk 0:01:15.7]} 18. Nb4 {[%clk
0:01:32.1]} 18... Qc5 {[%clk 0:01:03.4]} 19. Ba2 {[%clk 0:01:27.1]} 19... Ba5
{[%clk 0:00:52.2]} 20. c3 {[%clk 0:01:21.6]} 20... Bb7 {[%clk 0:00:48.3]} 21.
Nd3 {[%clk 0:01:15.6]} 21... Qh5 {[%clk 0:00:40.5]} 22. Bc1 {[%clk 0:01:13.4]}
22... Bxe4 {[%clk 0:00:29.6]} 23. Nf4 {[%clk 0:01:10.5]} 23... Qf5 {[%clk
0:00:29.1]} 24. Qe3 {[%clk 0:01:01.9]} 24... d5 {[%clk 0:00:18.9]} 25. f3 {[%clk
0:00:35.9]} 25... Bc2 {[%clk 0:00:19.1]} 26. Rd2 {[%clk 0:00:36.3]} 26... Bb3
{[%clk 0:00:18.1]} 27. Bxb3 {[%clk 0:00:35.8]} 27... axb3 {[%clk 0:00:19]} 28.
Rde2 {[%clk 0:00:29.6]} 28... Nd6 {[%clk 0:00:17.7]} 29. Kh1 {[%clk 0:00:22.3]}
29... Nc4 {[%clk 0:00:16.9]} 30. Qc5 {[%clk 0:00:21.8]} 30... Rab8 {[%clk
0:00:16.9]} 31. Qg1 {[%clk 0:00:12.4]} 31... Bb6 {[%clk 0:00:17.1]} 32. Qf1
{[%clk 0:00:12.3]} 32... d4 {[%clk 0:00:17.4]} 33. cxd4 {[%clk 0:00:11.7]} 33...
Bxd4 {[%clk 0:00:18.3]} 34. Rd1 {[%clk 0:00:10]} 34... Bf6 {[%clk 0:00:17.2]}
35. Nd3 {[%clk 0:00:09.6]} 35... Rfd8 {[%clk 0:00:16.9]} 36. Re4 {[%clk
0:00:09.6]} 36... Rbc8 {[%clk 0:00:12.6]} 37. Qe2 {[%clk 0:00:08.7]} 37... Qd5
{[%clk 0:00:08.2]} 38. Nf2 {[%clk 0:00:07.9]} 38... Qc6 {[%clk 0:00:08]} 39. Re1
{[%clk 0:00:07.6]} 39... Nb6 {[%clk 0:00:06.5]} 40. Ng4 {[%clk 0:00:07.3]} 40...
Qxc1 {[%clk 0:00:06.4]} 41. Nxf6+ {[%clk 0:00:07.3]} 41... gxf6 {[%clk
0:00:06.4]} 42. Qf2 {[%clk 0:00:07.7]} 42... Qg5 {[%clk 0:00:05.3]} 43. Rg4
{[%clk 0:00:07.3]} 43... Qxg4 {[%clk 0:00:05.9]} 44. fxg4 {[%clk 0:00:08.2]}
44... Rc2 {[%clk 0:00:06.2]} 45. Qxb6 {[%clk 0:00:08.2]} 45... Rdc8 {[%clk
0:00:06.7]} 46. Qxb5 {[%clk 0:00:08]} 46... Rc1 {[%clk 0:00:07.6]} 47. Qf1
{[%clk 0:00:07.3]} 47... R1c2 {[%clk 0:00:06.9]} 48. Rb1 {[%clk 0:00:07.2]}
48... Rd2 {[%clk 0:00:06.8]} 49. h3 {[%clk 0:00:07.6]} 49... Rcc2 {[%clk
0:00:05.9]} 50. a4 {[%clk 0:00:07.4]} 50... Kg7 {[%clk 0:00:06.3]} 51. a5 {[%clk
0:00:07.4]} 51... Rd6 {[%clk 0:00:06.5]} 52. a6 {[%clk 0:00:06.1]} 52... Rc7
{[%clk 0:00:07.1]} 53. Ra1 {[%clk 0:00:05.7]} 53... Ra7 {[%clk 0:00:08]} 54. Qb5
{[%clk 0:00:05.2]} 54... Rdd7 {[%clk 0:00:08.9]} 55. Qxd7 {[%clk 0:00:04.7]}
55... e5 {[%clk 0:00:09.8]} 56. Qxa7 {[%clk 0:00:04]} 56... e4 {[%clk
0:00:10.7]} 57. Qe3 {[%clk 0:00:03.6]} 57... h5 {[%clk 0:00:11.6]} 58. a7 {[%clk
0:00:04.5]} 58... Kg6 {[%clk 0:00:12.3]} 59. a8=Q {[%clk 0:00:05.4]} 59... hxg4
{[%clk 0:00:12.8]} 60. Qaxe4+ {[%clk 0:00:06.3]} 60... f5 {[%clk 0:00:12.9]} 61.
Qxg4+ {[%clk 0:00:07.2]} 61... fxg4 {[%clk 0:00:13]} 62. Ra6+ {[%clk 0:00:08.1]}
62... Kf5 {[%clk 0:00:12.6]} 63. hxg4+ {[%clk 0:00:08]} 63... Kxg4 {[%clk
0:00:13.2]} 64. Qe4+ {[%clk 0:00:08]} 64... Kg5 {[%clk 0:00:12.9]} 65. Kh2
{[%clk 0:00:06.9]} 65... f5 {[%clk 0:00:12.7]} 66. Qe7+ {[%clk 0:00:07]} 66...
Kf4 {[%clk 0:00:13.3]} 67. Ra4# {[%clk 0:00:05.7]} 1-0

[Event "*** SCC Grand Prix: Titled Tuesday Blitz"]
[Site "Chess.com"]
[Date "2020.10.13"]
[Round "1"]
[White "anasta10"]
[Black "BAS8892"]
[Result "1/2-1/2"]
[WhiteElo "2419"]
[BlackElo "2794"]
[TimeControl "180+1"]
[EndTime "10:08:40 PDT"]
[Termination "Game drawn - insufficient material"]

1. Nf3 {[%clk 0:03:00.9]} 1... Nf6 {[%clk 0:02:58.7]} 2. d4 {[%clk 0:03:00.9]}
2... d5 {[%clk 0:02:58.1]} 3. c4 {[%clk 0:03:01.2]} 3... c6 {[%clk 0:02:57.3]}
4. cxd5 {[%clk 0:02:59.8]} 4... cxd5 {[%clk 0:02:56.8]} 5. Nc3 {[%clk
0:03:00.7]} 5... Nc6 {[%clk 0:02:56.6]} 6. Bf4 {[%clk 0:03:01.2]} 6... a6 {[%clk
0:02:55.7]} 7. e3 {[%clk 0:03:01.7]} 7... Bf5 {[%clk 0:02:54.7]} 8. Bd3 {[%clk
0:03:00.6]} 8... Bxd3 {[%clk 0:02:53.6]} 9. Qxd3 {[%clk 0:03:01.5]} 9... e6
{[%clk 0:02:53.9]} 10. O-O {[%clk 0:03:00.9]} 10... Bd6 {[%clk 0:02:52.7]} 11.
Bxd6 {[%clk 0:03:00.5]} 11... Qxd6 {[%clk 0:02:52.4]} 12. Rfc1 {[%clk 0:03:01]}
12... b5 {[%clk 0:02:48.8]} 13. a3 {[%clk 0:02:46]} 13... O-O {[%clk 0:02:47.4]}
14. Rc2 {[%clk 0:02:25.4]} 14... Na5 {[%clk 0:02:45.2]} 15. h3 {[%clk 0:02:21]}
15... Nc4 {[%clk 0:02:43.3]} 16. a4 {[%clk 0:02:14.8]} 16... b4 {[%clk
0:02:42.8]} 17. Ne2 {[%clk 0:02:15.1]} 17... Nd7 {[%clk 0:02:23.2]} 18. Nd2
{[%clk 0:02:08.6]} 18... Ndb6 {[%clk 0:02:10.7]} 19. b3 {[%clk 0:02:03.7]} 19...
Na3 {[%clk 0:02:02.9]} 20. Rc5 {[%clk 0:01:58.5]} 20... Nd7 {[%clk 0:02:02.7]}
21. Rcc1 {[%clk 0:01:51.9]} 21... Rfc8 {[%clk 0:02:01.8]} 22. e4 {[%clk
0:01:45.6]} 22... h6 {[%clk 0:01:58.2]} 23. e5 {[%clk 0:01:44.6]} 23... Qb6
{[%clk 0:01:44.3]} 24. f4 {[%clk 0:01:38.4]} 24... Rc6 {[%clk 0:01:44]} 25. Rxc6
{[%clk 0:01:38]} 25... Qxc6 {[%clk 0:01:44]} 26. Rc1 {[%clk 0:01:38]} 26... Qb7
{[%clk 0:01:41.4]} 27. f5 {[%clk 0:01:35.8]} 27... Rc8 {[%clk 0:01:39.2]} 28.
Rxc8+ {[%clk 0:01:29.6]} 28... Qxc8 {[%clk 0:01:38.9]} 29. Kh2 {[%clk
0:01:26.3]} 29... Qc2 {[%clk 0:01:34.4]} 30. Qxc2 {[%clk 0:01:24.5]} 30... Nxc2
{[%clk 0:01:34.9]} 31. fxe6 {[%clk 0:01:23.2]} 31... fxe6 {[%clk 0:01:35.2]} 32.
Kg3 {[%clk 0:01:14.7]} 32... Nb8 {[%clk 0:01:34.9]} 33. Kf2 {[%clk 0:01:06.4]}
33... Nc6 {[%clk 0:01:34.5]} 34. Nf3 {[%clk 0:01:06.4]} 34... g5 {[%clk
0:01:30.4]} 35. g4 {[%clk 0:01:03.9]} 35... Kf7 {[%clk 0:01:29.5]} 36. Kg3
{[%clk 0:01:02.4]} 36... Kg6 {[%clk 0:01:26.5]} 37. Kf2 {[%clk 0:01:02.8]} 37...
Na5 {[%clk 0:01:19.7]} 38. Nc1 {[%clk 0:01:01.9]} 38... Na1 {[%clk 0:01:16.1]}
39. Nd2 {[%clk 0:01:01.1]} 39... Nc6 {[%clk 0:01:15.7]} 40. Ne2 {[%clk
0:00:56.7]} 40... h5 {[%clk 0:01:14.2]} 41. Kg3 {[%clk 0:00:51.1]} 41... Nc2
{[%clk 0:01:07.4]} 42. Nf3 {[%clk 0:00:47.4]} 42... hxg4 {[%clk 0:01:00.1]} 43.
hxg4 {[%clk 0:00:46.3]} 43... Ne3 {[%clk 0:00:59.3]} 44. Nd2 {[%clk 0:00:40.5]}
44... Na5 {[%clk 0:00:51.9]} 45. Kf3 {[%clk 0:00:31.9]} 45... Nd1 {[%clk
0:00:50.7]} 46. Kg3 {[%clk 0:00:23.6]} 46... Nc3 {[%clk 0:00:49.9]} 47. Kf3
{[%clk 0:00:22.8]} 47... Ne4 {[%clk 0:00:42.9]} 48. Nxe4 {[%clk 0:00:22.4]}
48... dxe4+ {[%clk 0:00:42.7]} 49. Kxe4 {[%clk 0:00:23.3]} 49... Nxb3 {[%clk
0:00:43.1]} 50. d5 {[%clk 0:00:21.4]} 50... Nc5+ {[%clk 0:00:39.7]} 51. Kd4
{[%clk 0:00:21.4]} 51... Nxa4 {[%clk 0:00:39.7]} 52. d6 {[%clk 0:00:18.5]} 52...
Kf7 {[%clk 0:00:38.3]} 53. Kc4 {[%clk 0:00:18.7]} 53... Nb6+ {[%clk 0:00:36.3]}
54. Kxb4 {[%clk 0:00:18.3]} 54... Nd7 {[%clk 0:00:36.4]} 55. Ka5 {[%clk
0:00:16.2]} 55... Nxe5 {[%clk 0:00:36.2]} 56. Kxa6 {[%clk 0:00:16.8]} 56... Nxg4
{[%clk 0:00:35.3]} 57. Kb7 {[%clk 0:00:17]} 57... Nf6 {[%clk 0:00:33.1]} 58. Kc7
{[%clk 0:00:16.6]} 58... Nd5+ {[%clk 0:00:29.2]} 59. Kc8 {[%clk 0:00:14.3]}
59... e5 {[%clk 0:00:26.2]} 60. d7 {[%clk 0:00:13.3]} 60... Nb6+ {[%clk
0:00:26.2]} 61. Kc7 {[%clk 0:00:13.8]} 61... Nxd7 {[%clk 0:00:26]} 62. Kxd7
{[%clk 0:00:14.7]} 62... Kf6 {[%clk 0:00:24.9]} 63. Kd6 {[%clk 0:00:15.2]} 63...
Kf5 {[%clk 0:00:25.2]} 64. Kd5 {[%clk 0:00:15.7]} 64... g4 {[%clk 0:00:25]} 65.
Ng3+ {[%clk 0:00:13.8]} 65... Kf4 {[%clk 0:00:25.2]} 66. Nh5+ {[%clk 0:00:14.1]}
66... Kg5 {[%clk 0:00:24.4]} 67. Ng3 {[%clk 0:00:13.6]} 67... Kf4 {[%clk
0:00:23.7]} 68. Nh5+ {[%clk 0:00:13.7]} 68... Kg5 {[%clk 0:00:23.9]} 69. Ng3
{[%clk 0:00:13.8]} 69... Kf6 {[%clk 0:00:24.4]} 70. Ke4 {[%clk 0:00:13.5]} 70...
Ke6 {[%clk 0:00:24]} 71. Nh5 {[%clk 0:00:13.1]} 71... Kd6 {[%clk 0:00:22.9]} 72.
Kf5 {[%clk 0:00:12.8]} 72... g3 {[%clk 0:00:23.8]} 73. Nxg3 {[%clk 0:00:11.1]}
73... Kd5 {[%clk 0:00:24.7]} 74. Ne4 {[%clk 0:00:11.5]} 74... Kd4 {[%clk
0:00:24.4]} 75. Nf6 {[%clk 0:00:11.4]} 75... e4 {[%clk 0:00:24.2]} 76. Nxe4
{[%clk 0:00:11.7]} 1/2-1/2